Cogmind - Beta 15 @@@ ROGUE MODE // 2025.05.20 @ 20:41:26 Player: saltine Result: Destroyed by AA-2RR(R) with Subdweller Machine Gun Performance ------------- Evolutions (0) 0 Regions Visited (2) 400 Robots Destroyed (11) 55 Value Destroyed (220) 220 Prototype IDs (11) 220 Alien Tech Used (0) 0 Bonus (-59) -59 TOTAL SCORE: 836 Bonus ------- Friendly Fire -59 Cogmind --------- Core Integrity 0/250 Matter 254/300 Energy 51/100 System Corruption 0% Temperature Cool (0) Movement Treading (240) Ox1 Location -10/Subcaves Parts ------- > --- POWER (1) -------- (None) > --- PROPULSION (2) --- Light Treads > --- UTILITY (2) ------ Large Storage Unit > --- WEAPON (2) ------- Subdweller Beam Cannon Heavy Battle Rifle > --- INVENTORY (15) --- Subdweller Power Source Wheel Compact Wheel Small Storage Unit Gun Armor EM Pulse Gun Riot Gun Subdweller Laser Assault Rifle Assault Rifle Light Assault Rifle Subdweller Machine Gun Peak State ------------ > --- POWER ------------ Ion Engine > --- PROPULSION ------- Aluminum Leg Aluminum Leg > --- UTILITY ---------- Large Storage Unit Seismic Detector > --- WEAPON ----------- Subdweller Laser Subdweller Beam Cannon > --- INVENTORY -------- Ion Engine Subdweller Power Source Light Treads Light Treads Wheel Compact Wheel Small Storage Unit Gun Armor EM Pulse Gun Riot Gun Assault Rifle Assault Rifle Light Assault Rifle Subdweller Machine Gun Heavy Battle Rifle [Rating: 12] Favorites ----------- Power Ion Engine Engine Ion Engine Propulsion Aluminum Leg Treads Light Treads Leg Aluminum Leg Utility Large Storage Unit Device Seismic Detector Storage Large Storage Unit Weapon Assault Rifle Energy Gun Subdweller Laser Energy Cannon Subdweller Beam Cannon Ballistic Gun Assault Rifle Build | -11 -10 -10 ------- Run | Yrd Mat Sub Slots Evolved . | . . . Power . | . . . Propulsion . | . . . Utility . | . . . Weapon . | . . . Parts Attached 10 | 1 1 8 Power 1 | . . 1 Engine 1 | . . 1 Core . | . . . Reactor . | . . . Propulsion 2 | . . 2 Treads 2 | . . 2 Leg . | . . . Wheel . | . . . Hover . | . . . Flight . | . . . Utility 2 | 1 1 . Device 1 | 1 . . Storage 1 | . 1 . Processor . | . . . Hackware . | . . . Protection . | . . . Artifact . | . . . Weapon 5 | . . 5 Energy Gun 2 | . . 2 Energy Cannon 1 | . . 1 Ballistic Gun 2 | . . 2 Ballistic Cannon . | . . . Launcher . | . . . Special Weapon . | . . . Impact Weapon . | . . . Slashing Weapon . | . . . Piercing Weapon . | . . . Special Melee Weapon . | . . . Unidentified Prototypes . | . . . Parts Lost 5 | . . 5 Power 2 | . . 2 Propulsion 3 | . . 3 Utility . | . . . Weapon . | . . . Highest Loss Streak 5 | . . 5 To Critical Strikes 1 | . . 1 Average Backups 9 | 6 7 9 Power 1 | 1 1 1 Propulsion 3 | 4 4 3 Utility 1 | . . 1 Weapon 2 | 1 1 2 Tool/Special . | . . . Unused Backups 16 | 6 . 10 Power 3 | 1 . 2 Propulsion 6 | 2 . 4 Utility 2 | 1 . 1 Weapon 5 | 2 . 3 Tool/Special . | . . . Average Slot Usage (%) 97 | . 100 97 Engine 13 | . 14 13 Leg 27 | . 28 27 Device 11 | . 14 11 Storage 14 | . 14 14 Energy Gun 6 | . . 7 Energy Cannon 2 | . . 2 Ballistic Gun 18 | . 28 17 Peak Build Rating 12 | 7 7 12 Average Rating 7 | 6 7 8 On Entrance 6 | 6 7 7 Naked Turns . | . . . Heaviest Build 38 | 15 30 38 Greatest Support 20 | 20 20 20 Greatest Overweight (x) 1 | . 1 1 Average Overweight (x) . | . . 1 Largest Inventory Capacity 15 | 8 15 15 Average Capacity 14 | 8 14 15 Most Carried 15 | 6 8 15 Average Carried 9 | 6 7 9 Final Capacity 15 | 8 15 15 Final Carried 12 | 6 8 12 Class Distribution -------------------- 100% | Mutant Dominant Class ---------------- Mutant | -10/Materials Mutant | -10/Subcaves Resources | -11 -10 -10 ----------- Run | Yrd Mat Sub Matter Collected 445 | 256 . 189 Remotely . | . . . Salvage Created 381 | 104 . 277 Parts 21 | 6 . 15 Haulers Intercepted . | . . . Recyclers Shooed . | . . . Parts Field Recycled . | . . . Retrieved Matter . | . . . Parts Self-Destructed 12 | . . 12 Prevented . | . . . Kills | -11 -10 -10 ------- Run | Yrd Mat Sub Combat Hostiles Destroyed 8 | . . 8 Guns 7 | . . 7 Cannons 1 | . . 1 Classes Destroyed 5 | 2 . 3 Tunneler 2 | 2 . . Recycler 1 | 1 . . Swarmer 4 | . . 4 Artisan 1 | . . 1 Subdweller 4 | . . 4 Best Kill Streak 4 | 2 . 4 Combat Bots Only 4 | . . 4 Max Kills in Single Turn 1 | 1 . 1 Gunslinging . | . . . Exploded . | . . . Melee . | . . . Uniques/NPCs Destroyed . | . . . Combat | -11 -10 -10 -------- Run | Yrd Mat Sub Hostile Shots Fired 83 | . . 83 Missed 19 | . . 19 Hits 64 | . . 64 Projectile 64 | . . 64 Critical Strikes 4 | . . 4 Damage Taken 1012 | . . 1012 Core 257 | . . 257 Absorbed by Shields . | . . . Core Remaining (%) 100 | 100 . . Volleys Fired 58 | 9 . 49 Largest 2 | 2 . 2 Hottest 113 | 40 . 113 Shots Fired 95 | 18 . 77 Gun 80 | 18 . 62 Cannon 15 | . . 15 Launcher . | . . . Special . | . . . Kinetic 62 | 18 . 44 Thermal 32 | . . 32 Explosive . | . . . Electromagnetic 1 | . . 1 Robot Hit Streak 8 | 8 . 8 Robot Miss Streak 5 | 2 . 5 Penetration Max . | . . . Secondary Targets 3 | . . 3 Max Gunslinging Chain 1 | . . 1 Shots Hit Robots 54 | 12 . 42 Core Hits 15 | 4 . 11 Critical Kills . | . . . Critical Parts Destroyed 1 | 1 . . Critical Strikes 2 | 1 . 1 Destroy 2 | 1 . 1 Melee Attacks . | . . . Impact . | . . . Slashing . | . . . Piercing . | . . . Sneak Attacks . | . . . Combat Hostiles . | . . . Follow-up Attacks . | . . . Damage Inflicted 946 | 155 . 791 Guns 612 | 155 . 457 Cannons 334 | . . 334 Explosions . | . . . Melee . | . . . Ramming . | . . . Kinetic 555 | 155 . 400 Thermal 379 | . . 379 Explosive . | . . . Electromagnetic 12 | . . 12 Impact . | . . . Slashing . | . . . Piercing . | . . . Highest Corruption . | . . . Average Corruption . | . . . Corruption Purged . | . . . Corruption Blocked . | . . . Overload Shots . | . . . Overflow Damage . | . . . Projectiles . | . . . Explosions . | . . . Melee . | . . . Knockbacks . | . . . Impact . | . . . Kinetic . | . . . Secondary . | . . . Self-Inflicted Damage . | . . . Shots . | . . . Rammed . | . . . Targets Rammed . | . . . Kicked . | . . . Crushed . | . . . Highest Temperature 18 | 6 . 18 Average Temperature 8 | 6 . 9 Received Heat Transfer 117 | . . 117 Siege Activations . | . . . Martial Activations . | . . . Shielding Activations . | . . . Robots Disrupted . | . . . Combat Hostiles . | . . . Robots Corrupted . | . . . Combat Hostiles . | . . . Parts Fried . | . . . Impact Corruptions . | . . . Robots Melted . | . . . Combat Hostiles . | . . . Parts Melted 1 | . . 1 Heat Transferred 494 | . . 494 Parts Sabotaged . | . . . Parts Stolen . | . . . Parts Stripped . | . . . Power Chain Reactions . | . . . Alert | -11 -10 -10 ------- Run | Yrd Mat Sub Maximum Alert Level . | . . . Low Security (%) 100 | 100 100 . Level 1 . | . . . Level 2 . | . . . Level 3 . | . . . Level 4 . | . . . Level 5 . | . . . High Security . | . . . Max Security . | . . . Peak Influence 10 | 10 . . Initial . | . . . Average . | 1 . . Influence Increases 140 | 15 . 125 Destroy 0b10 Robot/C 80 | . . 80 Destroy 0b10 Robot/NC 15 | 15 . . Lose Combat Pursuer 45 | . . 45 Influence Decreases 140 | 15 . 125 Time Decay 140 | 15 . 125 Squads Dispatched 1 | . 1 . Investigation 1 | . 1 . Extermination . | . . . Reinforcement . | . . . Assault . | . . . Garrison . | . . . Intercept . | . . . Searches Triggered . | . . . Construction Impeded . | . . . Haulers Reinforced . | . . . Active Scanning Responses . | . . . Cargo Convoy Interrupts . | . . . Stealth | -11 -10 -10 --------- Run | Yrd Mat Sub Distress Signals . | . . . Communications Jammed . | . . . Distress Signals . | . . . Times Spotted 14 | . 3 11 Peak Tracking Total 4 | . 4 4 Tactical Retreats 1 | . . 1 Traps | -11 -10 -10 ------- Run | Yrd Mat Sub Traps Triggered 2 | . 1 1 Indirectly . | . . . Trap Hack Attempts . | . . . Triggered . | . . . Disarmed . | . . . Reprogrammed . | . . . Reused . | . . . Traps Extracted . | . . . Installed . | . . . Triggered . | . . . Machines | -11 -10 -10 ---------- Run | Yrd Mat Sub Machines Disabled 1 | . . 1 Max in Single Turn 1 | . . 1 Machines Repaired . | . . . Machines Dismantled . | . . . Machines Sabotaged . | . . . Overloaded Fab Kills . | . . . Hacking | -11 -10 -10 --------- Run | Yrd Mat Sub Machines Accessed 2 | . 1 1 Terminals 1 | . 1 . Fabricators . | . . . Repair Stations . | . . . Recycling Units . | . . . Scanalyzers . | . . . Garrison Access . | . . . Total Hacks 2 | . 1 1 Successful 1 | . . 1 Failed 1 | . 1 . Catastrophic 1 | . 1 . Database Lockouts . | . . . Manual . | . . . Terminals 1 | . 1 . Fabricators . | . . . Repair Stations . | . . . Recycling Units . | . . . Scanalyzers . | . . . Garrison Access . | . . . Terminal Hacks 1 | . . 1 Proto ID Catalog 1 | . . 1 Fabricator Hacks . | . . . Repair Station Hacks . | . . . Recycling Unit Hacks . | . . . Scanalyzer . | . . . Garrison Access Hacks . | . . . Unauthorized Hacks . | . . . Terminals . | . . . Fabricators . | . . . Repair Stations . | . . . Recycling Units . | . . . Scanalyzers . | . . . Garrison Access . | . . . Data Cores Recovered . | . . . Used . | . . . Hacking Detections 1 | . 1 . Full Trace Events . | . . . Feedback Events . | . . . Feedback Blocked . | . . . Robot Schematics Acquired . | . . . Robots Built . | . . . Authchips . | . . . Time . | . . . Total Robot Build Rating . | . . . Part Schematics Acquired . | . . . Parts Built . | . . . Authchips . | . . . Time . | . . . Total Part Build Rating . | . . . Parts Repaired . | . . . Time . | . . . Parts Recycled . | . . . Recycled Matter . | . . . Retrieved Matter . | . . . Retrieved Components . | . . . Parts Scanalyzed . | . . . Part Schematics Acquired . | . . . Parts Damaged . | . . . Bothacking | -11 -10 -10 ------------ Run | Yrd Mat Sub Used RIF Installer . | . . . Robots Hacked . | . . . Non-combat . | . . . Combat . | . . . Robot Hacks Applied . | . . . Relay Couplers Released . | . . . Fabnet Peak Effective % . | . . . Robots Rewired . | . . . Allies Hacked . | . . . Hacks Repelled . | . . . Allies | -11 -10 -10 -------- Run | Yrd Mat Sub Total Allies . | . . . Largest Group . | . . . Highest-Rated Group . | . . . Highest-Rated Ally . | . . . Total Orders . | . . . Ally Attacks . | . . . Total Damage . | . . . Kills . | . . . Allies Corrupted . | . . . Allies Melted . | . . . Intel | -11 -10 -10 ------- Run | Yrd Mat Sub Active Infowar (turns) 1543 | 3 191 1349 Seismic 1543 | 3 191 1349 Robot Analysis Total . | . . . Derelict Logs Recovered 3 | . . 3 Drone Launches . | . . . Drone Recoveries . | . . . Exploration | -11 -10 -10 ------------- Run | Yrd Mat Sub Turns Passed 1911 | 79 191 1641 Spaces Moved 853 | 19 83 751 Core . | . . . Treads . | . . . Legs 853 | 19 83 751 Wheels . | . . . Hover . | . . . Flight . | . . . Fastest Speed 120 | 120 120 190 Average Speed 186 | 120 173 190 Slowest Speed 190 | 120 190 190 Overloaded Moves . | . . . Propulsion Burnouts . | . . . Robots Hopped . | . . . Potential Cave-ins . | . . . Cave-ins Triggered . | . . . Exploration Rate (%) 21 | 3 18 44 Regions Visited 2 Branch Regions 1 Pre-discovered Areas 3 | . . 3 Known Exits Taken . | . . . Unknown Exits Taken 2 | 1 1 . Scrap Searched 2 | . . 2 Spaces Dug . | . . . Terrain Destroyed 1 | . . 1 Melee . | . . . Projectile 1 | . . 1 AOE . | . . . Terrain Rammed . | . . . Walls Destroyed . | . . . Machines Disabled . | . . . Actions | -11 -10 -10 --------- Run | Yrd Mat Sub Total 1073 | 56 130 887 Wait 139 | 28 46 65 Move 851 | 18 82 751 Hop . | . . . Pick Up 7 | . 1 6 Fast Attach 2 | 1 . 1 Attach 6 | . . 6 Detach 4 | . . 4 Swap 5 | . 1 4 Drop 1 | . . 1 Fire 58 | 9 . 49 Melee . | . . . Ram . | . . . Kick . | . . . Crush . | . . . Escape Stasis . | . . . Rewire . | . . . Trap . | . . . Miscellaneous . | . . . Route ------- -11/Scrapyard -10/Materials -10/Subcaves (discovered 1 exit: [*Scr]) History --------- Turn | Location | Event 17 | -11/Scrapyard | Discovered new exit (range 1) 80 | -11/Scrapyard | Entered Materials 254 | -10/Materials | Discovered new exit (range 8) 271 | -10/Materials | Entered Subcaves 272 | -10/Subcaves | Approached by a straggling Scientist 309 | -10/Subcaves | Shifting Twisted Machinery released Flamer 314 | -10/Subcaves | Build established: Mutant 431 | -10/Subcaves | Learned location of Zion (-7) 684 | -10/Subcaves | Shifting Twisted Machinery released Flamer 694 | -10/Subcaves | Scientist uncovered a shortcut to Scraptown 711 | -10/Subcaves | Learned location of Storage (-7) 729 | -10/Subcaves | Shifting Twisted Machinery released Sub. Power Source 1273 | -10/Subcaves | Visited 4L-MR0's lab 1297 | -10/Subcaves | Found Gun Armor 1874 | -10/Subcaves | A Subdweller sparked back to life 1874 | -10/Subcaves | A Subdweller sparked back to life 1884 | -10/Subcaves | Core integrity fell below 50% 1895 | -10/Subcaves | Core integrity fell below 20% 1912 | -10/Subcaves | Destroyed by AA-2RR(R) with Subdweller Machine Gun Last Messages --------------- 01586_ G2-OE9(R) destroyed. 01601_ Acquired Sub. Beam Cannon. 01602_ Acquired 29 matter. 01699_ Acquired Sub. Machine Gun. 01819_ Acquired Hvy. Battle Rifle. 01828_ Acquired Riot Gun. 01874_ 1D-YYD(R) creaks and sparks as it begins to move. 01874_ AA-2RR(R) creaks and sparks as it begins to move. 01876_ Dropped Seismic Detector. 01880_ Ion Engine destroyed. 01881_ Critical hit (Destroy). 01881_ Aluminum Leg destroyed. 01894_ 1D-YYD(R) affixes Scrap Shield Fragment to Scrap Shield. 01897_ Subatomizers dissect the Seismic Detector. 01898_ Aluminum Leg destroyed. 01901_ Ion Engine destroyed. 01903_ CW-OPI(R) suffers critical hit (Destroy). 01903_ Destroyed Scrap Shield. 01906_ CW-OPI(R) destroyed. 01910_ Lgt. Treads destroyed. Map ----- +----------------------------------------------------+ | #?????? ??### #####??????????????? | | # #??# ## ### ????## ##?##??????????????? | | #??##??# ?# #??# ##????# ## ##?????????????? | | #??????#??##????###?????# #?????????????? | | #???????????????????????## #?????????????? | | #????????????????????????### ##?????????????? | | #?????????????????????????## ##?????????????? | | #????????????????????###### #?????????????? | | #???????????????????## ## #?????????????? | | ???????????????????# ##?# #?????????????? | | ??????????????????# ##???###?????????????? | | ?????????????????# ##???????????????????? | | "?????????????????## #???????????????????? | | "#?????????????????# ## ##???????????????????? | | ??"#?????????????????## ####????????????????????? | | ??#???????????????????# #??????????????????????? | | ??????????????????????## ##?????????????????????? | | ???????????????????????# ##????????????????????? | | ???????????????????????# #????????????????????? | | ???????????????????????## ####?????????????????? | | ????????????????????????## ##????????????????? | | ???#?????????????????????## ##???????????????? | | ?? ##????????????????????## #???????????????? | | ?? ?????????????????##### ##??????????????? | | ? ?????????????????## ## #??????????????? | | ? ?????????????????# @## #?????????????? | | ??????????????????# ## ####?????????????? | | #??????????????????## ##????????????????? | | ##??????????????????# R! # #?????????????????? | | #??????????????????# R#;## #????????????????? | | #??????????????????## & ## #???????????????? | | ##??????????????????# "?# #??????????????? | | ##?????????????????#< ? ##??????????????? | | #?????????????????#< " #???????????????? | | #?????????????????# """ ##???????????????? | | #????????????????## # #????????????????? | | ##???????????????####### ????????????????? | | ##????????????????????# ?????????????????? | | # #???????????????????????????????????????? | | ?? ???????????????????????????????????????? | | ?? ???????????????????????????????????????? | | ??# ???????????????????????????????????????? | | ??# ????????????????????????????????????????? | | ??# ^ ????????????????????????????????????????? | | ??? #????????????????????????????????????????? | | ???? #????????????????????????????????????????? | | ????# ?????????????????????????????????????????? | | ????# #?????????????????????????????????????????? | | ????# ####??????????????????????????????????????? | | ##### # ##?????????????????????????????????????? | +----------------------------------------------------+ Best States ------------- Heat Dissipation 25 Energy Generation 10 Energy Capacity 250 Matter Stores 300 Matter Capacity 300 Sight Range 16 Terrain Scan Density 10 Evasion (%) 50 Recoil Reduction 2 Item Schematics ----------------- None Robot Schematics ------------------ None Fabricated ------------ Nothing Repaired ---------- Nothing Alien Tech Used ----------------- None Achievements -------------- None Challenges ------------ None Game ------ Seed CargoSmartbombSlayer Manual? 0 Play Time 00:13:42 Cumulative 420.2 hours Start 2025.05.20 @ 20:28:48 End 2025.05.20 @ 20:41:26 Sessions 2 Manual Loads 0 Difficulty Rogue Special Mode None Game No. 205 Rogue 205 Adventurer 0 Explorer 0 Win Type - Total 17 Types 3/3/6/2/1/0/1/0/0/1 Lore% 88 Gallery% 83 Achievement% 77 Wizard Run 0 Options --------- Layout 0 ASCII 0 Keyboard 0 Movement Arrows Keybinds 0 Fullscreen 2 Font 18/SmallcapsGlow Map View 76x50 Zoom Use 0% Tactical HUD 1 Map Filters NONE Filters NONE Steam 1 RUN: 6c83e04f-9a88-4de2-b342-03974cf2357e